Cogmind - Beta 10.1 @@@ ROGUE MODE // 2020.09.30 @ 21:27:42 Player: hittemvvvhard Result: Destroyed by as-59204 with Assembled Heavy Rifle Performance ------------- Evolutions (0) 0 Regions Visited (2) 400 Robots Destroyed (38) 190 Value Destroyed (189) 189 Prototype IDs (0) 0 Alien Tech Used (0) 0 Bonus (0) 0 TOTAL SCORE: 779 Bonus ------- None Cogmind --------- Core Integrity 0/250 Matter 260/300 Energy 100/100 System Corruption 2% Temperature Cool (0) Movement Core (150) Ox2 Location -10/Mines Parts ------- > --- POWER (1) -------- (None) > --- PROPULSION (2) --- (None) > --- UTILITY (2) ------ Small Storage Unit Small Storage Unit > --- WEAPON (2) ------- (None) > --- INVENTORY (8) ---- Ion Engine Light Ion Engine Aluminum Leg Medium Matter Pod (100) Medium Matter Pod (100) Medium Matter Pod (100) Structural Scanner Peak State ------------ > --- POWER ------------ Light Ion Engine > --- PROPULSION ------- Light Treads Light Treads > --- UTILITY ---------- Disposable Heat Sink Small Storage Unit > --- WEAPON ----------- Beam Rifle Assault Rifle > --- INVENTORY -------- Ion Engine Aluminum Leg Medium Matter Pod Medium Matter Pod Assault Rifle Assault Rifle [Rating: 9] Favorites ----------- Power Light Ion Engine Engine Light Ion Engine Propulsion Light Treads Treads Light Treads Utility Small Storage Unit Device Improved Terrain Scanner Storage Small Storage Unit Weapon Assault Rifle Energy Gun Beam Rifle Ballistic Gun Assault Rifle Build | -11 -10 -10 ------- Run | Scr Mat Min Slots Evolved . | . . . Power . | . . . Propulsion . | . . . Utility . | . . . Weapon . | . . . Parts Attached 12 | 7 2 3 Power 1 | 1 . . Engine 1 | 1 . . Core . | . . . Reactor . | . . . Propulsion 2 | 2 . . Treads 2 | 2 . . Leg . | . . . Wheel . | . . . Hover . | . . . Flight . | . . . Utility 4 | 2 1 1 Device 2 | 1 1 . Storage 2 | 1 . 1 Processor . | . . . Hackware . | . . . Protection . | . . . Artifact . | . . . Weapon 5 | 2 1 2 Energy Gun 1 | . 1 . Energy Cannon . | . . . Ballistic Gun 4 | 2 . 2 Ballistic Cannon . | . . . Launcher . | . . . Special Weapon . | . . . Impact Weapon . | . . . Slashing Weapon . | . . . Piercing Weapon . | . . . Special Melee Weapon . | . . . Unidentified Prototypes . | . . . Parts Lost 7 | . . 7 Power 1 | . . 1 Propulsion 2 | . . 2 Utility . | . . . Weapon 4 | . . 4 Highest Loss Streak 6 | . . 6 Average Slot Usage (%) 97 | . 99 96 Engine 13 | . 14 12 Treads 27 | . 28 26 Device 7 | . 13 1 Storage 19 | . 14 25 Energy Gun 3 | . 1 4 Ballistic Gun 24 | . 25 22 Naked Turns . | . . . Heaviest Build 15 | 12 13 15 Greatest Support 40 | 40 40 40 Greatest Overweight (x) . | . . . Average Overweight (x) . | . . . Largest Inventory Capacity 8 | 6 6 8 Average Capacity 6 | 5 6 7 Most Carried 8 | 6 6 8 Average Carried 6 | 4 5 6 Final Capacity 8 | 6 6 8 Final Carried 7 | 6 6 7 Class Distribution -------------------- 100% | Mutant Dominant Class ---------------- Mutant | -10/Materials Mutant | -10/Mines Resources | -11 -10 -10 ----------- Run | Scr Mat Min Matter Collected 815 | 282 18 515 Remotely . | . . . Salvage Created 903 | 10 27 866 Parts 78 | 2 3 73 Haulers Intercepted . | . . . Recyclers Shooed 2 | . . 2 Parts Field Recycled . | . . . Retrieved Matter . | . . . Parts Self-Destructed . | . . . Prevented . | . . . Kills | -11 -10 -10 ------- Run | Scr Mat Min Combat Hostiles Destroyed 10 | . . 10 Guns 10 | . . 10 Classes Destroyed 8 | 1 1 6 Worker 20 | . . 20 Builder 2 | . . 2 Tunneler 2 | 1 . 1 Recycler 3 | . . 3 Watcher 1 | . 1 . Swarmer 3 | . . 3 Grunt 2 | . . 2 Assembled 5 | . . 5 Best Kill Streak 30 | 1 1 30 Combat Bots Only 5 | . . 5 Max Kills in Single Turn 2 | 1 1 2 Gunslinging 1 | . . 1 Exploded . | . . . Melee . | . . . Uniques/NPCs Destroyed . | . . . Combat | -11 -10 -10 -------- Run | Scr Mat Min Damage Taken 1113 | . . 1113 Core 268 | . . 268 Absorbed by Shields . | . . . Core Remaining (%) 100 | 100 . . Volleys Fired 76 | 4 1 71 Largest 2 | 2 2 2 Hottest 76 | 40 40 76 Shots Fired 123 | 8 2 113 Gun 123 | 8 2 113 Cannon . | . . . Launcher . | . . . Special . | . . . Kinetic 90 | 8 2 80 Thermal 33 | . . 33 Explosive . | . . . Electromagnetic . | . . . Robot Hit Streak 9 | 5 1 9 Robot Miss Streak 5 | 1 . 5 Penetration Max . | . . . Secondary Targets 4 | . . 4 Max Gunslinging Chain 1 | . . 1 Shots Hit Robots 72 | 5 1 66 Core Hits 48 | 1 1 46 Critical Hits . | . . . Critical Kills . | . . . Critical Parts Destroyed . | . . . Melee Attacks . | . . . Impact . | . . . Slashing . | . . . Piercing . | . . . Sneak Attacks . | . . . Combat Hostiles . | . . . Follow-up Attacks . | . . . Damage Inflicted 1074 | 53 13 1008 Guns 1074 | 53 13 1008 Cannons . | . . . Explosions . | . . . Melee . | . . . Ramming . | . . . Kinetic 727 | 53 13 661 Thermal 347 | . . 347 Explosive . | . . . Electromagnetic . | . . . Impact . | . . . Slashing . | . . . Piercing . | . . . Highest Corruption 2 | . 2 2 Average Corruption 2 | . 2 2 Corruption Purged . | . . . Effects 13 | . 3 10 Message Errors 4 | . 1 3 Energy Discharges 1 | . . 1 Data Loss (minor) 3 | . 2 1 Targeting Errors 5 | . . 5 Overload Shots . | . . . Overflow Damage . | . . . Projectiles . | . . . Explosions . | . . . Melee . | . . . Knockbacks . | . . . Impact . | . . . Kinetic . | . . . Secondary . | . . . Self-Inflicted Damage . | . . . Shots . | . . . Rammed . | . . . Targets Rammed . | . . . Kicked . | . . . Crushed . | . . . Highest Temperature 374 | . . 374 Average Temperature 168 | . . 168 Received Heat Transfer 164 | . . 164 Effects 2 | . . 2 Shutdowns 1 | . . 1 Interference 1 | . . 1 Siege Activations . | . . . Robots Corrupted . | . . . Combat Hostiles . | . . . Parts Fried . | . . . Impact Corruptions . | . . . Robots Melted . | . . . Combat Hostiles . | . . . Parts Melted . | . . . Heat Transferred 888 | . . 888 Parts Sabotaged . | . . . Parts Stolen . | . . . Parts Stripped . | . . . Power Chain Reactions . | . . . Missiles Intercepted . | . . . Alert | -11 -10 -10 ------- Run | Scr Mat Min Peak Influence 258 | 5 49 258 Initial 18 | . 3 18 Average 104 | . 40 205 Maximum Alert Level 1 | . . 1 Low Security (%) 73 | 100 100 37 Level 1 26 | . . 62 Level 2 . | . . . Level 3 . | . . . Level 4 . | . . . Level 5 . | . . . High Security . | . . . Max Security . | . . . Squads Dispatched . | . . . Investigation . | . . . Extermination . | . . . Reinforcement . | . . . Assault . | . . . Garrison . | . . . Intercept . | . . . Construction Impeded . | . . . Haulers Reinforced . | . . . Stealth | -11 -10 -10 --------- Run | Scr Mat Min Distress Signals 1 | . 1 . Communications Jammed . | . . . Distress Signals . | . . . Times Spotted 15 | . 1 14 Peak Tracking Total 6 | . . 6 Tactical Retreats . | . . . Traps | -11 -10 -10 ------- Run | Scr Mat Min Traps Triggered 1 | . 1 . Indirectly . | . . . Trap Hack Attempts . | . . . Triggered . | . . . Disarmed . | . . . Reprogrammed . | . . . Reused . | . . . Traps Extracted . | . . . Installed . | . . . Triggered . | . . . Machines | -11 -10 -10 ---------- Run | Scr Mat Min Machines Disabled . | . . . Max in Single Turn . | . . . Machines Sabotaged . | . . . Garrisons Compromised . | . . . Overloaded Fab Kills . | . . . Fab Network Shutdowns . | . . . Hacking | -11 -10 -10 --------- Run | Scr Mat Min Machines Accessed 2 | . 2 . Terminals 2 | . 2 . Fabricators . | . . . Repair Stations . | . . . Recycling Units . | . . . Scanalyzers . | . . . Garrison Access . | . . . Total Hacks 4 | . 4 . Successful 3 | . 3 . Failed 1 | . 1 . Catastrophic . | . . . Database Lockouts . | . . . Manual . | . . . Terminals 4 | . 4 . Fabricators . | . . . Repair Stations . | . . . Recycling Units . | . . . Scanalyzers . | . . . Garrison Access . | . . . Terminal Hacks 3 | . 3 . Record 2 | . 2 . Zone Layout 1 | . 1 . Fabricator Hacks . | . . . Repair Station Hacks . | . . . Recycling Unit Hacks . | . . . Scanalyzer . | . . . Garrison Access Hacks . | . . . Unauthorized Hacks . | . . . Terminals . | . . . Fabricators . | . . . Repair Stations . | . . . Recycling Units . | . . . Scanalyzers . | . . . Garrison Access . | . . . Data Cores Recovered . | . . . Used . | . . . Hacking Detections 1 | . 1 . Full Trace Events . | . . . Feedback Events . | . . . Feedback Blocked . | . . . Robot Schematics Acquired . | . . . Robots Built . | . . . Matter . | . . . Time . | . . . Total Robot Build Rating . | . . . Part Schematics Acquired . | . . . Parts Built . | . . . Matter . | . . . Time . | . . . Total Part Build Rating . | . . . Parts Repaired . | . . . Time . | . . . Parts Recycled . | . . . Recycled Matter . | . . . Retrieved Matter . | . . . Retrieved Components . | . . . Parts Scanalyzed . | . . . Part Schematics Acquired . | . . . Parts Damaged . | . . . Bothacking | -11 -10 -10 ------------ Run | Scr Mat Min Used RIF Installer . | . . . Robots Hacked . | . . . Non-combat . | . . . Combat . | . . . Robot Hacks Applied . | . . . Relay Couplers Released . | . . . Robots Rewired . | . . . Allies Hacked . | . . . Hacks Repelled . | . . . Allies | -11 -10 -10 -------- Run | Scr Mat Min Total Allies 1 | . . 1 Largest Group 1 | . . 1 Highest-Rated Group 31 | . . 31 Highest-Rated Ally 31 | . . 31 Total Orders . | . . . Ally Attacks . | . . . Total Damage . | . . . Kills . | . . . Allies Corrupted . | . . . Allies Melted . | . . . Intel | -11 -10 -10 ------- Run | Scr Mat Min Robot Analysis Total . | . . . Derelict Logs Recovered . | . . . Drone Launches . | . . . Drone Recoveries . | . . . Exploration | -11 -10 -10 ------------- Run | Scr Mat Min Turns Passed 911 | 137 389 385 Spaces Moved 416 | 65 231 120 Core 1 | 1 . . Treads 415 | 64 231 120 Legs . | . . . Wheels . | . . . Hover . | . . . Flight . | . . . Fastest Speed 50 | 50 160 160 Average Speed 159 | 158 160 160 Slowest Speed 160 | 160 160 160 Overloaded Moves . | . . . Propulsion Burnouts . | . . . Robots Hopped . | . . . Cave-ins Triggered . | . . . Exploration Rate (%) 25 | 5 37 34 Regions Visited 2 Branch Regions 1 Pre-discovered Areas . | . . . Known Exits Taken . | . . . Unknown Exits Taken 2 | 1 1 . Scrap Searched 1 | . . 1 Spaces Dug . | . . . Terrain Destroyed . | . . . Melee . | . . . Projectile . | . . . AOE . | . . . Terrain Rammed . | . . . Walls Destroyed . | . . . Machines Disabled . | . . . Actions | -11 -10 -10 --------- Run | Scr Mat Min Total 540 | 88 252 200 Wait 15 | 7 6 2 Move 414 | 64 230 120 Hop . | . . . Pick Up 14 | 6 5 3 Fast Attach 10 | 7 2 1 Attach 2 | . . 2 Detach 1 | . 1 . Swap . | . . . Drop 8 | . 7 1 Fire 76 | 4 1 71 Melee . | . . . Ram . | . . . Kick . | . . . Crush . | . . . Escape Stasis . | . . . Rewire . | . . . Trap . | . . . Miscellaneous . | . . . Route ------- -11/Scrapyard -10/Materials (discovered 2 exits: [*Mat] / [*Min]) -10/Mines (discovered 2 exits: [*Mat x2]) History --------- Turn | Location | Event 21 | -11/Scrapyard | Discovered new exit (range 15) 138 | -11/Scrapyard | Entered Materials 315 | -10/Materials | Build established: Mutant 336 | -10/Materials | Discovered new exit (range 3) 405 | -10/Materials | Discovered new exit (range 12) 527 | -10/Materials | Entered Mines 529 | -10/Mines | Discovered new exit (range 10) 687 | -10/Mines | Discovered new exit (range 6) 692 | -10/Mines | Received a Mining Laser from a helpful Derelict 819 | -10/Mines | Assembled infested the area 850 | -10/Mines | Found a hidden stash of uninstalled traps 898 | -10/Mines | Core integrity fell below 50% 909 | -10/Mines | Core integrity fell below 20% 912 | -10/Mines | Destroyed by as-59204 with Assembled Heavy Rifle Last Messages --------------- 00869_ System corrupted: Assault Rifle targeting data glitched. 00871_ K-01 Serf collects debris. 00872_ as-87517 destroyed. 00872_ Switching to secondary target: as-59204. 00873_ Assault Rifle destroyed. 00874_ K-01 Serf collects debris. 00874_ as-90816 destroyed. 00875_ as-31257 destroyed. 00883_ Destroyed Asb. F-torch. 00888_ Lgt. Treads destroyed. 00888_ Lgt. Ion Engine destroyed. 00889_ as-57329 destroyed. 00889_ Switching to secondary target: as-69759. 00890_ Assault Rifle destroyed. 00894_ as-69759 destroyed. 00895_ Acquired 18 matter. 00896_ as-14629 destroyed. 00900_ Lgt. Treads destroyed. 00911_ Assault Rifle destroyed. 00912_ System corrupted: Component data lost. Map ----- +----------------------------------------------------+ | ???????????????????????????????????## #?## | | ??????????????????????????????????## ## | | ??????????????????????????????? ## | | ?????????????????????????????? | | ????????????????????????????? | | ????????????????????????????# | | ????????????????????????????# | | ????????????????????????????# | | ????????????????????????????# | | ?????????????????????????????# | | ?????????????????????????????# | | ?????????????????????????????# # | | ?????????????????????????????# #### | | ????????????????????????????# ##?## | | ???????????????????????????? ### ##?## | | ??????????????????????????????????# ##?## | | ?????????????????????????????????## ###??# "" | | ????? ???????????????????????????# ##????# "" | | ????? !?????????????????????????# ##????# "" | | ?????? ????????????????????????## ##???## | | ??????? !! ???????????????????????## ##???#### | | ???????? ???????????????????????## ######## | | ?????????? ?????####?????????????## # | | ???????????? ???## ##???????###### ## # | | ?????????????# ### ######### r ### ##???? | | ?????????????# a %% %@ **r ##??###????? | | ?????????????# ## &a % %% ##??????????? | | ????????????????## & a ###### #####???????????? | | ?????????????????###### #????####???????????????? | | ??????????????????????####???????????????????????? | | ?????????????????????????????????????????????????? | | ?????????????????????????????????????????????????? | | ?????????????????????????????????????????????????? | | ?????????????????????????????????????????????????? | | ?????????????????????????????????????????????????? | | ?????????????????????????????????????????????????? | | ?????????????????????????????????????????????????? | | ?????????????????????????????????????????????????? | | ?????????????????????????????????????????????????? | | ?????????????????????????????????????????????????? | | ?????????????????????????????????????????????????? | | ?????????????????????????????????????????????????? | | ?????????????????????????????????????????????????? | | ?????????????????????????????????????????????????? | | ?????????????????????????????????????????????????? | | ?????????????????????????????????????????????????? | | ?????????????????????????????????????????????????? | | ?????????????????????????????????????????????????? | | ?????????????????????????????????????????????????? | | ?????????????????????????????????????????????????? | +----------------------------------------------------+ Best States ------------- Heat Dissipation 25 Coolant Potential 50 Energy Generation 10 Energy Capacity 125 Matter Stores 300 Matter Capacity 300 Sight Range 16 Terrain Scan Range 16 Terrain Scan Density 10 Evasion (%) 40 Recoil Reduction 2 Item Schematics ----------------- None Robot Schematics ------------------ None Fabricated ------------ Nothing Alien Tech Used ----------------- None Achievements -------------- None Challenges ------------ None Game ------ Seed KineticWeldingMantle Manual? 0 Play Time 00:11:44 Cumulative 4.3 hours Start 2020.09.30 @ 21:15:38 End 2020.09.30 @ 21:27:42 Sessions 1 Manual Loads 0 Difficulty Rogue Special Mode None Game No. 8 Rogue 8 Adventurer 0 Explorer 0 Win Type - Total 0 Types 0/0/0/0/0/0/0/0/0 Lore% 2 Gallery% 11 Achievement% 12 Wizard Run 0 Options --------- ASCII 0 Keyboard 1 Movement Numpad Keybinds 0 Fullscreen 2 Font 18/X11Bold Map View 76x50 Tactical HUD 1 Map Filters NONE Filters NONE Steam 1 RUN: 894ccbff-6b6c-41dd-8639-e2a02e28667e